fUST/lending_fUST_20250901
["ID","MTS","AMOUNT","RATE_DAILY","PERIOD"]
[382621703,1756681274500,347.81301824,0.0001601,2]
[382621704,1756681275644,298.12544421,0.0001601,2]
[382621705,1756681276612,255.53609503,0.0001601,2]
[382621706,1756681277813,219.0309386,0.0001601,2]
[382621707,1756681279003,187.74080452,0.0001601,2]
[382621708,1756681279974,160.92068958,0.0001601,2]
[382621709,1756681281203,151.0,0.0001601,2]
[382621715,1756681475760,666.0,0.00015291,2]
[382621720,1756681565027,151.0,0.0001601,2]
[382621722,1756681674907,-300.0,0.00016183,2]
[382621723,1756681675028,-1200.0,0.00016183,2]
[382621724,1756681675153,-480.0,0.00016184,2]
[382621725,1756681675275,-480.0,0.00016184,2]
[382621726,1756681675376,-480.0,0.00016184,2]
[382621727,1756681675485,-1193.56,0.00016184,2]
[382621728,1756681675612,-480.0,0.00016184,2]
[382621729,1756681676130,-1387.64,0.00016184,2]
[382621730,1756681676243,-480.0,0.00016184,2]
[382621731,1756681676349,-1168.13,0.00016184,2]
[382621732,1756681676462,-480.0,0.00016184,2]
[382621733,1756681676583,-480.0,0.00016184,2]
[382621734,1756681676699,-856.71,0.00016184,2]
[382621735,1756681677575,-151.0,0.00016183,2]
[382621736,1756681677692,-480.0,0.00016184,2]
[382621737,1756681677797,-480.0,0.00016184,2]
[382621738,1756681677905,-605.50084993,0.00016285,2]
[382621739,1756681678009,-419.82,0.00016286,3]
[382621740,1756681678109,-500.0,0.00016291,2]
[382621741,1756681678211,-416.38546668,0.00016291,2]
[382621742,1756681678314,-500.0,0.00016291,2]
[382621743,1756681678417,-500.0,0.00016291,2]
[382621744,1756681678519,-207.17929558,0.00016291,2]
[382621745,1756681678624,-254.5773213,0.00016291,2]
[382621746,1756681678733,-429.89985462,0.00016291,2]
[382621747,1756681679436,-151.0,0.00016184,2]
[382621748,1756681679545,-111.28442378,0.00016291,2]
[382621749,1756681679651,-500.0,0.00016291,2]
[382621750,1756681679763,-500.0,0.00016291,2]
[382621751,1756681679872,-500.0,0.00016291,2]
[382621752,1756681679987,-500.0,0.00016291,2]
[382621753,1756681680111,-500.0,0.00016291,2]
[382621754,1756681680234,-500.0,0.00016291,2]
[382621755,1756681680374,-339.48564367,0.00016291,2]
[382621756,1756681680500,-500.0,0.00016291,2]
[382621757,1756681680622,-500.0,0.00016291,2]
[382621758,1756681680734,-296.4698651,0.00016291,2]
[382621759,1756681680992,-203.5301349,0.00016291,2]
[382621760,1756681681104,-500.0,0.00016291,2]
[382621761,1756681681215,-419.80781258,0.00016291,2]
[382621762,1756681681326,-500.0,0.00016291,2]
[382621763,1756681681442,-500.0,0.00016291,2]
[382621764,1756681681560,-500.0,0.00016291,2]
[382621765,1756681681678,-500.0,0.00016291,2]
[382621766,1756681681796,-500.0,0.00016291,2]
[382621767,1756681681911,-321.69666932,0.00016291,2]
[382621768,1756681682024,-500.0,0.00016291,2]
[382621769,1756681682139,-343.7963488,0.00016291,2]
[382621770,1756681682514,-500.0,0.00016291,2]
[382621771,1756681682631,-500.0,0.00016291,2]
[382621772,1756681682744,-500.0,0.00016291,2]
[382621773,1756681682853,-500.0,0.00016291,2]
[382621774,1756681682968,-500.0,0.00016291,2]
[382621775,1756681683078,-500.0,0.00016291,2]
[382621776,1756681683201,-500.0,0.00016291,2]
[382621777,1756681683323,-500.0,0.00016291,2]
[382621778,1756681683449,-500.0,0.00016291,2]
[382621779,1756681683569,-500.0,0.00016291,2]
[382621780,1756681684142,-500.0,0.00016291,2]
[382621781,1756681684446,-500.0,0.00016291,2]
[382621782,1756681684575,-500.0,0.00016291,2]
[382621783,1756681684701,-500.0,0.00016291,2]
[382621784,1756681684823,-500.0,0.00016291,2]
[382621785,1756681684952,-500.0,0.00016291,2]
[382621786,1756681685079,-500.0,0.00016291,2]
[382621787,1756681685204,-500.0,0.00016291,2]
[382621788,1756681685325,-250.54355087,0.00016291,2]
[382621789,1756681685458,-500.0,0.00016291,2]
[382621790,1756681685728,-500.0,0.00016291,2]
[382621791,1756681685854,-500.0,0.00016291,2]
[382621792,1756681685975,-500.0,0.00016291,2]
[382621793,1756681686095,-500.0,0.00016291,2]
[382621794,1756681686211,-500.0,0.00016291,2]
[382621795,1756681686331,-500.0,0.00016291,2]
[382621796,1756681686457,-500.0,0.00016291,2]
[382621797,1756681686575,-500.0,0.00016291,2]
[382621798,1756681686705,-500.0,0.00016291,2]
[382621799,1756681686825,-500.0,0.00016291,2]
[382621800,1756681686962,-500.0,0.00016291,2]
[382621801,1756681687078,-500.0,0.00016291,2]
[382621802,1756681687193,-500.0,0.00016291,2]
[382621803,1756681687305,-523.70101803,0.00016291,2]
[382621804,1756681687427,-500.0,0.00016291,2]
[382621805,1756681687547,-500.0,0.00016291,2]
[382621806,1756681687658,-300.0,0.00016292,2]
[382621807,1756681687767,-300.0,0.00016292,2]
[382621808,1756681687880,-1200.0,0.00016292,2]
[382621809,1756681687996,-52.60796394,0.00016292,2]
[382621810,1756681688461,-247.39203606,0.00016292,2]
[382621811,1756681700719,5000.0,0.0001601,2]
[382621812,1756681700880,-151.0,0.00016291,2]
[382621813,1756681701213,-2805.37,0.00016184,2]
[382621814,1756681705056,-151.0,0.00016292,2]
[382621815,1756681706956,-248.92150367,0.00016292,2]
[382621816,1756681707390,-502.24548899,0.00016292,2]
[382621817,1756681707557,-10000.01,0.00016292,2]
[382621818,1756681707656,-10000.01,0.00016292,2]
[382621819,1756681707901,-10000.01,0.00016292,2]
[382621820,1756681708158,-10000.01,0.00016292,2]
[382621821,1756681744977,-675.51,0.00016184,2]
[382621822,1756681745090,-480.0,0.00016184,2]
[382621823,1756681745199,-480.0,0.00016184,2]
[382621824,1756681745725,-6728.99,0.00016191,2]
[382621825,1756681745988,-10000.01,0.00016191,2]
[382621826,1756681746156,-10000.01,0.00016191,2]
[382621827,1756681746277,-10000.01,0.00016191,2]
[382621828,1756681746405,-752.82367221,0.00016191,2]
[382621829,1756681746523,-480.0,0.00016291,2]
[382621830,1756681746637,-480.0,0.00016291,2]
[382621831,1756681746743,-1000.86240959,0.00016293,2]
[382621832,1756681746843,-500.0,0.00016293,2]
[382621833,1756681746944,-748.99917642,0.00016294,2]
[382621834,1756681747045,-480.0,0.00016294,2]
[382621835,1756681747153,-500.0,0.00016294,2]
[382621836,1756681747546,-204.86626098,0.00016294,2]
[382621837,1756681747655,-379.97864584,0.00016294,2]
[382621838,1756681747767,-500.0,0.00016294,2]
[382621839,1756681747874,-502.63344645,0.00016294,2]
[382621840,1756681747981,-250.06039454,0.00016294,2]
[382621841,1756681748090,-500.0,0.00016294,2]
[382621842,1756681748202,-383.8183353,0.00016294,2]
[382621843,1756681748312,-899.2,0.00016295,2]
[382621844,1756681748425,-480.0,0.00016295,2]
[382621845,1756681748540,-538.26,0.00016295,2]
[382621846,1756681748653,-192.22605577,0.00016295,2]
[382621847,1756681749112,-337.92372224,0.00016295,2]
[382621848,1756681749218,-480.0,0.00016295,2]
[382621849,1756681749515,-480.0,0.00016295,2]
[382621850,1756681749624,-480.0,0.00016295,2]
[382621851,1756681749735,-503.27,0.00016295,2]
[382621852,1756681749844,-480.0,0.00016295,2]
[382621853,1756681749954,-480.0,0.00016295,2]
[382621854,1756681750064,-480.0,0.00016295,2]
[382621855,1756681750175,-480.0,0.00016295,2]
[382621856,1756681750289,-480.0,0.00016295,2]
[382621857,1756681750402,-157.62255552,0.00016295,2]
[382621858,1756681750855,-322.37744448,0.00016295,2]
[382621859,1756681750963,-492.2747479,0.00016295,2]
[382621860,1756681751073,-480.0,0.00016295,2]
[382621861,1756681751181,-480.0,0.00016295,2]
[382621862,1756681751291,-480.0,0.00016295,2]
[382621863,1756681751401,-480.0,0.00016295,2]
[382621864,1756681751513,-1413.07,0.00016295,2]
[382621865,1756681751622,-480.0,0.00016295,2]
[382621866,1756681751733,-264.56561524,0.00016295,2]
[382621867,1756681752184,-215.43438476,0.00016295,2]
[382621868,1756681752298,-500.0,0.00016295,2]
[382621869,1756681752409,-500.0,0.00016295,2]
[382621870,1756681752525,-480.0,0.00016295,2]
[382621871,1756681752643,-431.14152589,0.00016295,2]
[382621872,1756681752765,-578.28,0.00016295,2]
[382621873,1756681752877,-480.0,0.00016295,2]
[382621874,1756681752986,-480.0,0.00016295,2]
[382621875,1756681753096,-527.79,0.00016295,2]
[382621876,1756681753212,-788.05,0.00016295,2]
[382621877,1756681753792,-609.53,0.00016295,2]
[382621878,1756681753907,-986.68,0.00016295,2]
[382621879,1756681754021,-480.0,0.00016295,2]
[382621880,1756681754133,-941.88,0.00016295,2]
[382621881,1756681754254,-752.22,0.00016295,2]
[382621882,1756681754370,-480.0,0.00016295,2]
[382621883,1756681760665,-584.2964382,0.00016294,2]
[382621884,1756681760757,-480.0,0.00016294,2]
[382621885,1756681760859,-1499.39,0.00016294,2]
[382621886,1756681761653,-10000.01,0.00016294,2]
[382621887,1756681761758,-10000.01,0.00016294,2]
[382621888,1756681761863,-10000.01,0.00016294,2]
[382621889,1756681761968,-4050.06856313,0.00016294,2]
[382621890,1756681761978,-2481.71,0.00016295,2]
[382621891,1756681761987,-1623.33,0.00016295,2]
[382621892,1756681761996,-742.31,0.00016295,2]
[382621893,1756681762005,-480.0,0.00016295,2]
[382621894,1756681762014,-480.0,0.00016295,2]
[382621895,1756681762023,-142.59143687,0.00016295,2]
[382621896,1756681762340,-337.40856313,0.00016295,2]
[382621897,1756681762349,-480.0,0.00016295,2]
[382621898,1756681762362,-480.0,0.00016295,2]
[382621899,1756681762372,-1923.01,0.00016295,2]
[382621900,1756681762381,-480.0,0.00016295,2]
[382621901,1756681762390,-653.43,0.00016295,2]
[382621902,1756681762399,-480.0,0.00016295,2]
[382621903,1756681762408,-480.0,0.00016295,2]
[382621904,1756681762417,-480.0,0.00016295,2]
[382621905,1756681762425,-480.0,0.00016295,2]
[382621906,1756681762433,-480.0,0.00016295,2]
[382621907,1756681762442,-686.31,0.00016295,2]
[382621908,1756681762451,-480.0,0.00016295,2]
[382621909,1756681762460,-650.58,0.00016295,2]
[382621910,1756681762469,-480.0,0.00016295,2]
[382621911,1756681762477,-776.67,0.00016295,2]
[382621912,1756681762487,-172.60143687,0.00016295,2]
[382621913,1756681762590,-402.30856313,0.00016295,2]
[382621914,1756681762600,-721.6,0.00016295,2]
[382621915,1756681762609,-480.0,0.00016295,2]
[382621916,1756681762621,-480.0,0.00016295,2]
[382621917,1756681762630,-857.27,0.00016295,2]
[382621918,1756681762639,-598.75,0.00016295,2]
[382621919,1756681762647,-480.0,0.00016295,2]
[382621920,1756681762656,-5581.58,0.00016295,2]
[382621921,1756681762665,-398.50143687,0.00016295,2]
[382621922,1756681762771,-480.0,0.00016291,2]
[382621923,1756681762781,-454.42856313,0.00016295,2]
[382621924,1756681762790,-480.0,0.00016295,2]
[382621925,1756681762799,-480.0,0.00016295,2]
[382621926,1756681762808,-408.76768059,0.00016295,2]
[382621927,1756681762818,-1135.47,0.00016295,2]
[382621928,1756681762828,-480.0,0.00016295,2]
[382621929,1756681762837,-674.78,0.00016295,2]
[382621930,1756681762847,-480.0,0.00016295,2]
[382621931,1756681762856,-480.0,0.00016295,2]
[382621932,1756681762866,-480.0,0.00016295,2]
[382621933,1756681762876,-850.69,0.00016295,2]
[382621934,1756681762885,-887.52,0.00016295,2]
[382621935,1756681762895,-1276.02,0.00016295,2]
[382621936,1756681762904,-952.33375628,0.00016295,2]
[382621937,1756681763002,-164.04624372,0.00016295,2]
[382621938,1756681763012,-480.0,0.00016295,2]
[382621939,1756681763022,-891.06,0.00016295,2]
[382621940,1756681763031,-1190.51,0.00016295,2]
[382621941,1756681763040,-480.0,0.00016295,2]
[382621942,1756681763049,-480.0,0.00016295,2]
[382621943,1756681763058,-5000.0,0.00016295,2]
[382621944,1756681763067,-852.26,0.00016295,2]
[382621945,1756681763077,-462.13375628,0.00016295,2]
[382621946,1756681763178,-78.15624372,0.00016295,2]
[382621947,1756681763187,-1590.37,0.00016295,2]
[382621948,1756681763196,-480.0,0.00016295,2]
[382621949,1756681763206,-480.0,0.00016295,2]
[382621950,1756681763215,-5573.76,0.00016295,2]
[382621951,1756681763225,-480.0,0.00016295,2]
[382621952,1756681763235,-640.64,0.00016295,2]
[382621953,1756681763244,-480.0,0.00016295,2]
[382621954,1756681763255,-197.08375628,0.00016295,2]
[382621955,1756681763354,-282.91624372,0.00016295,2]
[382621956,1756681763366,-878.16,0.00016295,2]
[382621957,1756681763375,-480.0,0.00016295,2]
[382621958,1756681763385,-753.55,0.00016295,2]
[382621959,1756681763395,-480.0,0.00016295,2]
[382621960,1756681763404,-480.0,0.00016295,2]
[382621961,1756681825089,-174.14118493,0.00016083,2]
[382621962,1756681825202,-300.0,0.00016183,2]
[382621963,1756681825314,-1200.0,0.00016183,2]
[382621964,1756681825441,-300.0,0.00016183,2]
[382621965,1756681825558,-300.0,0.00016183,2]
[382621966,1756681825675,-300.0,0.00016183,2]
[382621967,1756681825787,-1555.7,0.00016184,2]
[382621968,1756681826311,-2378.31,0.00016184,2]
[382621969,1756681826439,-480.0,0.00016184,2]
[382621970,1756681826563,-1965.39,0.00016184,2]
[382621971,1756681827077,-654.97,0.00016184,2]
[382621972,1756681827199,-174.14118493,0.00016195,2]
[382621973,1756681827319,-1168.76,0.00016291,2]
[382621974,1756681827430,-1399.44,0.00016291,2]
[382621975,1756681827572,-480.0,0.00016291,2]
[382621976,1756681827698,-561.04,0.00016291,2]
[382621977,1756681827823,-500.0,0.00016294,2]
[382621978,1756681828079,5000.0,0.0001601,2]
[382621979,1756681828323,-500.0,0.00016294,2]
[382621980,1756681828443,-500.0,0.00016294,2]
[382621981,1756681828561,-500.0,0.00016294,2]
[382621982,1756681828676,-197.95744754,0.00016294,2]
[382621983,1756681828785,-744.31,0.00016295,2]
[382621984,1756681828891,-961.59,0.00016295,2]
[382621985,1756681828992,-480.0,0.00016295,2]
[382621986,1756681829093,-480.0,0.00016295,2]
[382621987,1756681829345,-4442.54,0.00016295,2]
[382621988,1756681829805,-1114.93,0.00016295,2]
[382621989,1756681829921,-480.0,0.00016295,2]
[382621990,1756681830038,-786.36,0.00016295,2]
[382621991,1756681830152,-603.01,0.00016295,2]
[382621992,1756681830268,-480.0,0.00016295,2]
[382621993,1756681830385,-480.0,0.00016295,2]
[382621994,1756681830502,-480.0,0.00016295,2]
[382621995,1756681830672,-2319.5,0.00016295,2]
[382621996,1756681830799,-1252.75,0.00016295,2]
[382621997,1756681830925,-480.0,0.00016295,2]
[382621998,1756681831049,-480.0,0.00016295,2]
[382621999,1756681831176,-79.98,0.00016295,2]
[382622000,1756681831686,-775.55,0.00016295,2]
[382622001,1756681831808,-480.0,0.00016295,2]
[382622002,1756681831934,-1351.17,0.00016295,2]
[382622006,1756681832063,-480.0,0.00016295,2]
[382622011,1756681832197,-480.0,0.00016295,2]
[382622012,1756681832327,-480.0,0.00016295,2]
[382622049,1756681833490,-480.0,0.00016184,2]
[382622050,1756681837623,-127.76155013,0.00016184,2]
[382622051,1756681837764,-352.23844987,0.00016184,2]
[382622052,1756681837774,-127.76155013,0.00016184,2]
[382622053,1756681837976,-352.23844987,0.00016184,2]
[382622054,1756681837985,-127.76155013,0.00016295,2]
[382622059,1756681838108,-352.23844987,0.00016295,2]
[382622060,1756681838117,-1554.33155013,0.00016296,2]
[382622061,1756681838279,-10000.01,0.00016296,2]
[382622066,1756681838423,-480.0,0.00016295,2]
[382622080,1756681838551,-9040.01,0.00016296,2]
[382622178,1756681841193,-480.0,0.00016184,2]
[382622179,1756681841325,-480.0,0.00016291,2]
[382622180,1756681841446,-480.0,0.00016295,2]
[382622181,1756681841595,-480.0,0.00016295,2]
[382622182,1756681841702,-480.0,0.00016295,2]
[382622183,1756681841822,-480.0,0.00016295,2]
[382622184,1756681841936,-495.41,0.00016295,2]
[382622185,1756681842423,-480.0,0.00016295,2]
[382622186,1756681842535,-1069.87,0.00016295,2]
[382622187,1756681842905,-480.0,0.00016295,2]
[382622194,1756681843249,-1219.32,0.00016296,2]
[382622203,1756681843419,-480.0,0.00016296,2]
[382622215,1756681843523,-1069.87,0.00016296,2]
[382622217,1756681843651,-500.0,0.00016295,2]
[382622219,1756681843661,-500.0,0.00016295,2]
[382622221,1756681843671,-5900.27,0.00016296,2]
[382622236,1756681843812,-500.0,0.00016295,2]
[382622242,1756681843938,-208.17757828,0.00016295,2]
[382622243,1756681844547,-8831.83242172,0.00016296,2]
[382622244,1756681844690,-4557.84293466,0.00016296,2]
[382622245,1756681844817,-384.32413068,0.00016385,2]
[382622246,1756681844973,-115.67586932,0.00016385,2]
[382622247,1756681845100,-500.0,0.00016385,2]
[382622248,1756681845227,-500.0,0.00016387,2]
[382622249,1756681845350,-500.0,0.00016387,2]
[382622250,1756681845475,-500.0,0.00016387,2]
[382622251,1756681845598,-500.0,0.00016388,2]
[382622252,1756681845723,-500.0,0.00016388,2]
[382622253,1756681845850,-480.0,0.00016388,2]
[382622254,1756681846083,-480.0,0.00016295,2]
[382622256,1756681846094,-982.16706534,0.00016388,2]
[382622257,1756681846203,-2365.36293466,0.00016388,2]
[382622258,1756681846214,-480.0,0.00016388,2]
[382622259,1756681846225,-1205.63,0.00016388,2]
[382622260,1756681846236,-480.0,0.00016388,2]
[382622261,1756681846247,-480.0,0.00016388,2]
[382622262,1756681846258,-1311.67,0.00016388,2]
[382622263,1756681846268,-612.47,0.00016388,2]
[382622264,1756681846279,-480.0,0.00016389,2]
[382622265,1756681846289,-480.0,0.00016389,2]
[382622266,1756681846299,-480.0,0.00016389,2]
[382622267,1756681846310,-794.64,0.00016389,2]
[382622268,1756681846320,-538.98,0.00016389,2]
[382622269,1756681846331,-291.25706534,0.00016389,2]
[382622271,1756681846482,-188.74293466,0.00016389,2]
[382622272,1756681846605,-480.0,0.00016389,2]
[382622273,1756681846733,-480.0,0.00016389,2]
[382622274,1756681846857,-1000.63,0.00016389,2]
[382622281,1756681846986,-480.0,0.00016389,2]
[382622292,1756681847115,-634.14,0.00016389,2]
[382622300,1756681847247,-480.0,0.00016389,2]
[382622301,1756681847377,-872.23,0.00016389,2]
[382622302,1756681847513,-288.52413068,0.00016389,2]
[382622303,1756681847987,-191.47586932,0.00016389,2]
[382622304,1756681848000,-480.0,0.00016389,2]
[382622305,1756681848011,-480.0,0.00016389,2]
[382622306,1756681848021,-480.0,0.00016389,2]
[382622307,1756681848031,-480.0,0.00016389,2]
[382622308,1756681848042,-480.0,0.00016389,2]
[382622309,1756681848053,-480.0,0.00016389,2]
[382622310,1756681848063,-480.0,0.00016389,2]
[382622311,1756681848074,-480.0,0.00016389,2]
[382622312,1756681848084,-356.08948706,0.00016389,2]
[382622313,1756681848218,-707.60051294,0.00016389,2]
[382622314,1756681848342,-1362.8,0.00016389,2]
[382622315,1756681848461,-480.0,0.00016389,2]
[382622316,1756681848582,-480.0,0.00016389,2]
[382622317,1756681848707,-480.0,0.00016389,2]
[382622318,1756681849137,-1217.14,0.00016389,2]
[382622319,1756681849301,-64.92897412,0.00016389,2]
[382622320,1756681849629,-265.3734476,0.00016389,2]
[382622321,1756681849771,-115.67586932,0.00016389,2]
[382622322,1756681849882,-34.02170896,0.00016389,2]
[382622323,1756681849893,-465.97829104,0.00016389,2]
[382622324,1756681850104,-14.02170896,0.00016389,2]
[382622325,1756681850114,-305.6,0.00016389,2]
[382622326,1756681850124,-180.37829104,0.00016389,2]
[382622327,1756681850240,-299.62170896,0.00016389,2]
[382622328,1756681850251,-200.37829104,0.00016389,2]
[382622329,1756681850399,-279.62170896,0.00016389,2]
[382622330,1756681850409,-220.37829104,0.00016389,2]
[382622331,1756681850533,-259.62170896,0.00016389,2]
[382622332,1756681850543,-240.37829104,0.00016389,2]
[382622333,1756681850683,-239.62170896,0.00016389,2]
[382622334,1756681850693,-260.37829104,0.00016389,2]
[382622335,1756681850824,-314.10170896,0.00016389,2]
[382622336,1756681850835,-165.89829104,0.00016389,2]
[382622337,1756681850970,-314.10170896,0.00016389,2]
[382622338,1756681850980,-517.26,0.00016389,2]
[382622339,1756681850990,-480.0,0.00016389,2]
[382622340,1756681850999,-967.34,0.00016389,2]
[382622341,1756681851009,-529.9565524,0.00016389,2]
[382622342,1756681851291,-188.74293466,0.00016295,2]
[382622343,1756681851417,-291.25706534,0.00016295,2]
[382622344,1756681851427,-188.74293466,0.00016389,2]
[382622345,1756681851583,-240.44051294,0.00016389,2]
[382622346,1756681851592,-239.55948706,0.00016389,2]
[382622347,1756681851717,-594.68051294,0.00016389,2]
[382622348,1756681851727,-405.94948706,0.00016389,2]
[382622349,1756681851845,-480.0,0.00016389,2]
[382622350,1756681851964,-135.81051294,0.00016389,2]
[382622351,1756681851974,-480.0,0.00016389,2]
[382622352,1756681851984,-18.32948706,0.00016389,2]
[382622353,1756681852097,-461.67051294,0.00016389,2]
[382622354,1756681852106,-18.32948706,0.00016389,2]
[382622355,1756681852227,-872.23,0.00016389,2]
[382622356,1756681852338,-248.04051294,0.00016389,2]
[382622357,1756681852347,-231.95948706,0.00016389,2]
[382622358,1756681852510,-480.0,0.00016295,2]
[382622359,1756681852520,-227.60051294,0.00016295,2]
[382622360,1756681852636,-252.39948706,0.00016295,2]
[382622361,1756681852647,-745.72051294,0.00016389,2]
[382622362,1756681852658,-364.68,0.00016389,2]
[382622363,1756681852772,-115.32,0.00016389,2]
[382622364,1756681852782,-364.68,0.00016389,2]
[382622365,1756681852899,-204.73403394,0.00016285,2]
[382622366,1756681852908,-275.26596606,0.00016389,2]
[382622367,1756681853008,-480.0,0.00016389,2]
[382622368,1756681853114,-238.40403394,0.00016389,2]
[382622369,1756681853124,-480.0,0.00016389,2]
[382622370,1756681853133,-480.0,0.00016389,2]
[382622371,1756681853144,-18.73596606,0.00016389,2]
[382622372,1756681853351,-461.26403394,0.00016389,2]
[382622373,1756681853361,-18.73596606,0.00016389,2]
[382622374,1756681885654,1820.70454333,0.0001601,2]
[382622376,1756681935194,558.972142,0.00015294,2]
[382622377,1756681952035,7620.33331467,0.00015318,2]
[382622378,1756681952146,10000.01,0.00015318,2]
[382622379,1756681952254,2420.06744963,0.00015318,2]
[382622380,1756681985308,7579.94255037,0.00015294,2]
[382622381,1756681985415,2420.05744963,0.00015294,2]
[382622382,1756682015538,5000.0,0.0001601,2]
[382622383,1756682031829,2579.95255037,0.0001601,2]
[382622384,1756682031924,2420.04744963,0.0001601,2]
[382622385,1756682048752,5000.0,0.0001601,2]
[382622386,1756682057099,2579.96255037,0.0001601,2]
[382622387,1756682057207,2420.03744963,0.0001601,2]
[382622388,1756682072450,5000.0,0.0001601,2]
[382622389,1756682080969,2579.97255037,0.0001601,2]
[382622390,1756682081062,2420.02744963,0.0001601,2]
[382622391,1756682096703,5000.0,0.0001601,2]
[382622392,1756682098770,1370.4204351,0.00015266,2]
[382622393,1756682104651,1209.56211527,0.0001601,2]
[382622394,1756682104778,3790.43788473,0.0001601,2]
[382622395,1756682128947,5000.0,0.0001601,2]
[382622397,1756682151911,5000.0,0.0001601,2]
[382622398,1756682155668,0.01,0.00013699,2]
[382622399,1756682155768,1045.576931,0.00013699,2]
[382622400,1756682174562,5000.0,0.0001601,2]
[382622401,1756682196875,3416.33977214,0.0001601,2]
[382622402,1756682304102,538.09329686,0.0001514,2]
[382622403,1756682304206,1277.02650514,0.0001514,2]
[382622404,1756682304335,1034.70356605,0.0001553,2]
[382622405,1756682321452,5000.0,0.0001601,2]
[382622406,1756682344555,2688.27992881,0.0001601,2]
[382622407,1756682344669,2311.72007119,0.0001601,2]
[382622408,1756682368167,5000.0,0.0001601,2]
[382622409,1756682391259,2688.28992881,0.0001601,2]
[382622410,1756682391363,2311.71007119,0.0001601,2]
[382622411,1756682414398,5000.0,0.0001601,2]
[382622412,1756682438575,2688.29992881,0.0001601,2]
[382622413,1756682438693,2311.70007119,0.0001601,2]
[382622414,1756682448459,-208.60824167,0.00016082,2]
[382622415,1756682448483,-208.60824163,0.00016082,2]
[382622416,1756682448507,-208.60824163,0.00016082,2]
[382622417,1756682448534,-208.60824163,0.00016083,2]
[382622418,1756682448557,-208.60824163,0.00016083,2]
[382622419,1756682448587,-1200.0,0.00016182,2]
[382622420,1756682448609,-328.78798777,0.00016182,2]
[382622421,1756682448631,-300.0,0.00016182,2]
[382622422,1756682448655,-300.0,0.00016182,2]
[382622423,1756682448677,-300.0,0.00016182,2]
[382622424,1756682448703,-1200.0,0.00016182,2]
[382622425,1756682448726,-537.66,0.00016182,2]
[382622426,1756682448750,-480.0,0.00016182,2]
[382622427,1756682448779,-508.94669806,0.00016182,2]
[382622428,1756682448802,-500.0,0.00016182,2]
[382622429,1756682448826,-352.16132917,0.00016182,2]
[382622430,1756682448853,-500.0,0.00016182,2]
[382622431,1756682448876,-296.30182363,0.00016182,2]
[382622432,1756682448902,-500.0,0.00016182,2]
[382622433,1756682448927,-203.14763526,0.00016182,2]
[382622434,1756682448962,-500.0,0.00016182,2]
[382622435,1756682448988,-500.0,0.00016182,2]
[382622436,1756682449013,-161.76998948,0.00016182,2]
[382622437,1756682449041,-500.0,0.00016182,2]
[382622438,1756682449068,-500.0,0.00016182,2]
[382622439,1756682449094,-405.1040366,0.00016182,2]
[382622440,1756682449117,-480.0,0.00016183,2]
[382622441,1756682449139,-910.16,0.00016183,2]
[382622442,1756682449163,-480.0,0.00016183,2]
[382622443,1756682449186,-480.0,0.00016183,2]
[382622444,1756682449210,-480.0,0.00016183,2]
[382622445,1756682449233,-480.0,0.00016183,2]
[382622446,1756682449256,-480.0,0.00016183,2]
[382622447,1756682449278,-480.0,0.00016183,2]